bitfinex-derivatives/quotes_BTCF0:USTF0_20250711
["timestamp","ask_amount","ask_price","bid_price","bid_amount"]
[1752228730089,1.41376749,118370.0,118360.0,0.168917]
[1752228730789,1.34486977,118370.0,118360.0,0.168917]
[1752228731590,1.34586977,118370.0,118360.0,0.168917]
[1752228732082,1.34434977,118370.0,118360.0,0.168917]
[1752228732589,0.9222788,118370.0,118360.0,0.168917]
[1752228732888,1.34434977,118370.0,118360.0,0.168917]
[1752228733286,0.2111927,118340.0,118330.0,0.2956579]
[1752228733484,0.59102607,118340.0,118330.0,0.3568579]
[1752228733788,1.24582607,118340.0,118330.0,0.3568579]
[1752228734989,1.24582607,118340.0,118330.0,0.2534181]
[1752228735190,1.31002607,118340.0,118330.0,0.2534181]
[1752228736092,0.94866711,118340.0,118330.0,0.2534181]
[1752228736393,0.94866711,118340.0,118330.0,0.2111797]
[1752228736595,1.37073808,118340.0,118330.0,0.2111797]
[1752228736892,0.29386711,118340.0,118330.0,0.2111797]
[1752228737289,0.95050711,118340.0,118330.0,0.26068508]
[1752228737490,0.95050711,118340.0,118330.0,0.2430797]
[1752228737491,0.0323,118340.0,118330.0,0.2430797]
[1752228737798,0.0758488,118360.0,118350.0,0.1689312]
[1752228737799,0.0844632,118360.0,118350.0,0.1689312]
[1752228737986,1.06674218,118360.0,118350.0,0.1689312]
[1752228738594,1.05161101,118360.0,118350.0,0.1689312]
[1752228739004,1.00937891,118360.0,118350.0,0.1689312]
[1752228739185,0.12601763,118360.0,118350.0,0.1689312]
[1752228739391,0.22963453,118360.0,118350.0,0.1689312]
[1752228739594,0.1689169,118360.0,118350.0,0.2316312]
[1752228739893,0.59098787,118360.0,118350.0,0.1997312]
[1752228740092,0.65448787,118360.0,118350.0,0.1997312]
[1752228740993,0.65448787,118360.0,118350.0,0.1689312]
[1752228740994,0.77256787,118360.0,118350.0,0.1689312]
[1752228741191,1.47335997,118360.0,118350.0,0.1689312]
[1752228741388,0.1689455,118340.0,118330.0,0.212195]
[1752228741688,0.60705583,118340.0,118330.0,0.212195]
[1752228741886,0.80678438,118340.0,118330.0,0.212195]
[1752228742094,0.80678438,118340.0,118330.0,0.1699558]
[1752228742095,0.73088278,118340.0,118330.0,0.1699558]
[1752228743090,0.67015583,118340.0,118330.0,0.1699558]
[1752228744794,0.18498486,118340.0,118330.0,0.1699558]
[1752228744991,0.18498486,118340.0,118330.0,0.2310558]
[1752228745393,0.85414486,118340.0,118330.0,0.2310558]
[1752228745694,0.01603936,118340.0,118330.0,0.2310558]
[1752228747297,0.8365712,118350.0,118340.0,0.2956475]
[1752228747501,0.8365712,118350.0,118340.0,0.3565475]
[1752228748001,0.89729815,118350.0,118340.0,0.3565475]
[1752228749100,0.8365712,118350.0,118340.0,0.3565475]
[1752228749503,0.35430794,118360.0,118350.0,0.1689312]
[1752228749698,1.02042794,118360.0,118350.0,0.1689312]
[1752228750001,1.38177196,118360.0,118350.0,0.1689312]
[1752228752313,0.1689312,118350.0,118340.0,0.3582364]
[1752228752503,0.62180217,118350.0,118340.0,0.2315344]
[1752228752700,0.1997312,118350.0,118340.0,0.2315344]
[1752228753007,0.62180217,118350.0,118340.0,0.2315344]
[1752228753301,0.62180217,118350.0,118340.0,0.1992344]
[1752228753302,0.65330217,118350.0,118340.0,0.1992344]
[1752228753692,0.2312312,118350.0,118340.0,0.1992344]
[1752228753894,0.65330217,118350.0,118340.0,0.1992344]
[1752228755002,0.65330217,118350.0,118340.0,0.1689344]
[1752228755402,0.71402912,118350.0,118340.0,0.1689344]
[1752228755598,0.72920377,118350.0,118340.0,0.1689344]
[1752228756899,0.3071328,118350.0,118340.0,0.1689344]
[1752228757204,0.66726316,118350.0,118340.0,0.1689344]
[1752228758301,0.79396776,118350.0,118340.0,0.1689455]
[1752228759204,0.1689455,118340.0,118330.0,0.2534229]
[1752228759401,1.25463586,118340.0,118330.0,0.2534229]
[1752228759601,1.33053746,118340.0,118330.0,0.2534229]
[1752228760001,1.33053746,118340.0,118330.0,0.3172229]
[1752228760899,0.98673843,118340.0,118330.0,0.3172229]
[1752228761106,1.34686879,118340.0,118330.0,0.3172229]
[1752228761309,0.98673843,118340.0,118330.0,0.3172229]
[1752228761605,0.95403843,118340.0,118330.0,0.3172229]
[1752228761912,1.31416879,118340.0,118330.0,0.3172229]
[1752228762405,1.31416879,118340.0,118330.0,0.3182229]
[1752228762700,1.31416879,118340.0,118330.0,0.2858229]
[1752228762894,1.34506879,118340.0,118330.0,0.2858229]
[1752228763203,1.26916719,118340.0,118330.0,0.2544229]
[1752228763997,1.34518804,118340.0,118330.0,0.2544229]
[1752228764200,1.34518804,118340.0,118330.0,0.2121838]
[1752228764702,1.34518804,118340.0,118330.0,0.1699598]
[1752228764903,1.26916719,118340.0,118330.0,0.001]
[1752228765515,1.35347082,118340.0,118330.0,0.001]
[1752228765804,1.27744997,118340.0,118330.0,0.001]
[1752228766109,0.99334046,118340.0,118330.0,0.003]
[1752228766301,1.35347082,118340.0,118330.0,0.003]
[1752228766609,1.27744997,118340.0,118330.0,0.003]
[1752228766808,1.38377289,118340.0,118330.0,0.003]
[1752228767108,0.9933234,118340.0,118330.0,0.001]
[1752228767305,1.35345376,118340.0,118330.0,0.002]
[1752228768006,1.27744997,118340.0,118330.0,0.002]
[1752228768509,1.38377289,118340.0,118330.0,0.002]
[1752228769414,1.02364253,118340.0,118330.0,0.002]
[1752228769711,1.38377289,118340.0,118330.0,0.002]
[1752228769900,0.1689598,118330.0,118320.0,0.00169026]
[1752228770105,0.1690142,118300.0,118290.0,0.2010087]
[1752228770406,0.8400142,118300.0,118290.0,0.2323087]
[1752228771412,1.20014456,118300.0,118290.0,0.2323087]
[1752228771910,0.8400142,118300.0,118290.0,0.2323087]
[1752228773509,1.20014456,118300.0,118290.0,0.2323087]
[1752228773809,1.20014456,118300.0,118290.0,0.2353087]
[1752228774004,1.20014456,118300.0,118290.0,0.2353168]
[1752228774310,1.20014456,118300.0,118290.0,0.2373168]
[1752228774504,1.26564456,118300.0,118290.0,0.2373168]
[1752228774907,1.26564456,118300.0,118290.0,0.005]
[1752228775811,1.32639135,118300.0,118290.0,0.005]
[1752228776221,1.26564456,118300.0,118290.0,0.005]
[1752228776915,1.32639135,118300.0,118290.0,0.005]
[1752228777109,1.32639135,118300.0,118290.0,0.004]
[1752228777307,0.96626099,118300.0,118290.0,0.004]
[1752228777501,1.32639135,118300.0,118290.0,0.00404007]
[1752228778614,1.32639135,118300.0,118290.0,0.00304007]
[1752228779221,1.32620091,118300.0,118290.0,0.00304007]
[1752228779416,1.26564456,118300.0,118290.0,0.00204007]
[1752228779616,1.32620036,118300.0,118290.0,0.00204007]
[1752228780209,1.26564456,118300.0,118290.0,0.00204007]
[1752228780414,1.34159272,118300.0,118290.0,0.00204007]
[1752228780612,0.67059272,118300.0,118290.0,0.00104007]
[1752228780915,0.9087542,118300.0,118290.0,0.00104007]
[1752228781320,1.26888456,118300.0,118290.0,0.00104007]
[1752228781817,1.32942221,118300.0,118290.0,0.00104007]
[1752228782616,0.96929185,118300.0,118290.0,0.00104007]
[1752228782919,1.32942221,118300.0,118290.0,0.00104007]
[1752228783313,0.65518221,118300.0,118290.0,0.00104007]
[1752228783610,1.32774221,118300.0,118290.0,0.00104007]
[1752228783808,1.32826221,118300.0,118290.0,0.00104007]
[1752228784814,1.26772456,118300.0,118290.0,0.00104007]
[1752228785011,0.9075942,118300.0,118290.0,0.00104007]
[1752228785210,1.26772456,118300.0,118290.0,0.00104007]
[1752228786823,1.32826221,118300.0,118290.0,0.00104007]
[1752228787216,1.32674221,118300.0,118290.0,0.00104007]
[1752228788722,0.96661185,118300.0,118290.0,0.00104007]
[1752228788922,0.65518221,118300.0,118290.0,0.00104007]
[1752228789217,1.32550221,118300.0,118290.0,0.00104007]
[1752228789720,0.65518221,118300.0,118290.0,0.00104007]
[1752228789919,1.32486221,118300.0,118290.0,0.00104007]
[1752228792225,0.96473185,118300.0,118290.0,0.00104007]
[1752228792525,1.32346221,118300.0,118290.0,0.00104007]
[1752228793027,1.62311272,118300.0,118240.0,0.01132385]
[1752228793220,0.36013036,118250.0,118240.0,0.27715197]
[1752228793527,0.14290525,118260.0,118240.0,0.2113589]
[1752228793741,0.1690883,118240.0,118230.0,0.33065289]
[1752228793924,0.52921866,118240.0,118230.0,0.25837749]
[1752228794425,0.52921866,118240.0,118230.0,0.21610309]
[1752228794826,0.52921866,118240.0,118230.0,0.04701229]
[1752228795026,0.52921866,118240.0,118220.0,0.1691161]
[1752228795027,0.2959493,118230.0,118220.0,0.1691161]
[1752228795331,1.32739966,118230.0,118220.0,0.2000161]
[1752228796026,1.28512096,118230.0,118220.0,0.2000161]
[1752228796424,0.19955608,118240.0,118230.0,0.1691026]
[1752228796425,0.06836935,118240.0,118230.0,0.1691026]
[1752228796621,0.8401683,118240.0,118230.0,0.2000026]
[1752228797226,1.20029866,118240.0,118230.0,0.2000026]
[1752228797622,0.8401683,118240.0,118230.0,0.0309]
[1752228797822,0.1691026,118230.0,118220.0,0.2979364]
[1752228798027,0.23734891,118230.0,118220.0,0.3288364]
[1752228798328,0.59747927,118230.0,118220.0,0.3288364]
[1752228798728,0.23734891,118230.0,118220.0,0.3288364]
[1752228798943,0.6602303,118230.0,118220.0,0.3288364]
[1752228800034,0.6602303,118230.0,118220.0,0.2865577]
[1752228800529,0.6602303,118230.0,118220.0,0.2422808]
[1752228800726,0.6602303,118230.0,118220.0,0.2442808]
[1752228801331,0.23734891,118230.0,118220.0,0.2442808]
[1752228801633,0.90658891,118230.0,118220.0,0.2462808]
[1752228803230,0.90658891,118230.0,118220.0,0.26211154]
[1752228803825,0.002,118250.0,118240.0,0.1690883]
[1752228804027,0.002,118250.0,118240.0,0.62366969]
[1752228804229,0.06253765,118250.0,118240.0,0.62366969]
[1752228804522,0.002,118250.0,118240.0,0.62366969]
[1752228804933,0.002,118250.0,118240.0,0.23187339]
[1752228805131,0.171074,118250.0,118240.0,0.23187339]
[1752228805533,0.002,118250.0,118240.0,0.23187339]
[1752228806336,0.0693429,118250.0,118240.0,0.23187339]
[1752228807232,0.0693429,118250.0,118240.0,0.65475478]
[1752228807428,0.0693429,118250.0,118240.0,0.64156321]
[1752228807837,0.002,118250.0,118240.0,1.06070721]
[1752228808138,0.9188063,118280.0,118270.0,0.1690454]
[1752228808354,0.97936291,118280.0,118270.0,0.1690454]
[1752228808532,0.97936291,118280.0,118270.0,0.2001454]
[1752228808731,0.97924291,118280.0,118270.0,0.2001454]
[1752228809529,0.31412291,118280.0,118270.0,0.2309454]
[1752228809729,1.00309429,118280.0,118270.0,0.2309454]
[1752228809935,0.94253768,118280.0,118270.0,0.2309454]
[1752228810132,1.00309429,118280.0,118270.0,0.2309454]
[1752228810931,0.96067309,118280.0,118270.0,0.2309454]
[1752228811935,0.96467309,118280.0,118270.0,0.2309454]
[1752228813331,0.90411648,118280.0,118270.0,0.2309454]
[1752228813839,1.32699787,118280.0,118270.0,0.2309454]
[1752228814043,1.38939787,118280.0,118270.0,0.2309454]
[1752228814339,1.38939787,118280.0,118270.0,0.1690454]
[1752228814935,0.1690454,118270.0,118260.0,0.0638]
[1752228815128,0.2113257,118260.0,118240.0,0.14639742]
[1752228815334,0.9154737,118260.0,118250.0,0.0321]
[1752228815527,0.171074,118250.0,118240.0,0.22026022]
[1752228815733,0.59395539,118250.0,118240.0,0.22027322]
[1752228815933,0.65775539,118250.0,118240.0,0.22027322]
[1752228816134,0.67398019,118250.0,118240.0,0.18867322]
[1752228816841,0.2510988,118250.0,118240.0,0.18867322]
[1752228817327,0.2490988,118250.0,118240.0,0.18867322]
[1752228818440,0.2490988,118250.0,118240.0,0.19067322]
[1752228818839,0.2167988,118250.0,118240.0,0.25417322]
[1752228819044,0.0162248,118250.0,118240.0,0.25417322]
[1752228819232,0.0162248,118250.0,118240.0,0.67705461]
[1752228820033,0.0162248,118250.0,118240.0,0.71335918]
[1752228820436,0.0162248,118250.0,118240.0,0.84619861]
[1752228820740,0.0162248,118250.0,118240.0,1.09619861]
[1752228821242,0.8722747,118270.0,118260.0,0.1690597]
[1752228821636,0.93283131,118270.0,118260.0,0.2313597]
[1752228823535,0.27387131,118270.0,118260.0,0.2313597]
[1752228824934,0.06255661,118270.0,118260.0,0.24875302]
[1752228825143,0.002,118270.0,118260.0,0.67163441]
[1752228825839,0.002,118270.0,118260.0,0.24875302]
[1752228826241,0.30091288,118280.0,118270.0,0.1690454]
[1752228826436,0.30091288,118280.0,118270.0,0.2326454]
[1752228826743,0.23570368,118280.0,118270.0,0.2326454]
[1752228826932,0.2113011,118280.0,118270.0,0.2326454]
[1752228827134,0.2735011,118280.0,118270.0,0.2326454]
[1752228827643,0.2735011,118280.0,118270.0,0.2306454]
[1752228828143,0.3017811,118280.0,118270.0,0.2306454]
[1752228828437,0.13275,118280.0,118270.0,0.2306454]
[1752228828637,0.10245,118280.0,118270.0,0.65352679]
[1752228831140,0.10245,118280.0,118270.0,0.2306454]
[1752228831346,0.10245,118280.0,118270.0,0.65352679]
[1752228831545,0.10345,118280.0,118270.0,0.66180492]
[1752228831734,0.10345,118280.0,118270.0,1.96728492]
[1752228832038,0.10345,118280.0,118270.0,2.38638092]
[1752228832240,0.10245,118280.0,118270.0,2.38638092]
[1752228832447,0.02313,118290.0,118280.0,0.1690311]
[1752228832649,0.02313,118290.0,118280.0,0.67383016]
[1752228832944,0.02313,118290.0,118280.0,0.84291016]
[1752228834245,1.04367022,118320.0,118310.0,0.1689882]
[1752228834246,0.13767452,118320.0,118310.0,0.1689882]
[1752228834450,0.30664842,118320.0,118310.0,0.1689882]
[1752228834947,0.24609181,118320.0,118310.0,0.1689882]
[1752228835633,0.2300739,118320.0,118310.0,0.1689882]
[1752228835838,0.2723239,118320.0,118310.0,0.1689882]
[1752228836045,0.2723239,118320.0,118310.0,0.1679882]
[1752228836545,0.34096796,118320.0,118310.0,0.1679882]
[1752228838148,0.04625,118320.0,118310.0,0.59086959]
[1752228838346,0.04625,118320.0,118310.0,0.65216959]
[1752228838747,0.05125,118320.0,118310.0,0.65216959]
[1752228839938,0.2202239,118320.0,118310.0,0.2292882]
[1752228840647,0.05125,118320.0,118310.0,0.2292882]
[1752228841948,0.2202239,118320.0,118310.0,0.2292882]
[1752228842445,0.05125,118320.0,118310.0,0.2292882]
[1752228842645,0.04825,118320.0,118310.0,0.2292882]
[1752228843045,0.04825,118320.0,118310.0,0.65216959]
[1752228844047,0.2172239,118320.0,118310.0,0.2292882]
[1752228844249,0.04825,118320.0,118310.0,0.2292882]
[1752228844444,0.04725,118320.0,118310.0,0.2302882]
[1752228844843,0.216224,118320.0,118310.0,0.2302882]
[1752228845044,0.10955,118320.0,118310.0,0.2302882]
[1752228845442,0.216224,118320.0,118310.0,0.2302882]
[1752228845642,0.04725,118320.0,118310.0,0.2302882]
[1752228846646,0.04725,118320.0,118310.0,0.72174056]
[1752228846850,0.04725,118320.0,118310.0,0.65905448]
[1752228847050,0.04425,118320.0,118310.0,0.65905448]
[1752228847754,0.04225,118320.0,118310.0,0.65905448]
[1752228848074,0.04225,118320.0,118310.0,0.66005448]
[1752228848345,0.04225,118320.0,118310.0,0.29985917]
[1752228848551,0.04225,118320.0,118310.0,0.66005448]
[1752228850247,0.04225,118320.0,118310.0,0.29985917]
[1752228850750,0.04225,118320.0,118310.0,0.66005448]
[1752228851551,1.70704462,118320.0,118310.0,0.002]
[1752228851753,0.1690168,118290.0,118280.0,0.00169083]
[1752228852052,1.17909211,118290.0,118280.0,0.00169083]
[1752228852247,1.60328742,118290.0,118280.0,0.00169083]
[1752228852449,1.24309211,118290.0,118280.0,0.00169083]
[1752228852651,1.31904027,118290.0,118280.0,0.00169083]
[1752228853550,0.59321211,118290.0,118280.0,0.00169083]
[1752228853753,0.95771367,118290.0,118280.0,0.18856064]
[1752228853952,1.31790898,118290.0,118280.0,0.18856064]
[1752228854158,0.72522,118290.0,118280.0,0.18856064]
[1752228854354,0.15163687,118290.0,118280.0,0.18856064]
[1752228854558,0.07602,118290.0,118280.0,0.54875595]
[1752228854754,0.15163687,118290.0,118280.0,0.18856064]
[1752228855057,0.15163687,118290.0,118280.0,0.22066064]
[1752228855653,0.13653194,118290.0,118280.0,0.22066064]
[1752228855853,0.13653194,118290.0,118280.0,0.25376064]
[1752228856056,0.07602,118290.0,118280.0,0.25476064]
[1752228856656,0.07602,118290.0,118280.0,0.22266064]
[1752228856657,0.2450368,118290.0,118280.0,0.22266064]
[1752228856859,0.2450368,118290.0,118280.0,0.18956064]
[1752228857062,0.66736111,118290.0,118280.0,0.18956064]
[1752228857560,1.31704111,118290.0,118280.0,0.18956064]
[1752228857761,1.31732111,118290.0,118280.0,0.18956064]
[1752228858260,0.8949968,118290.0,118280.0,0.18956064]
[1752228858559,0.8949968,118290.0,118280.0,0.19056064]
[1752228859160,0.72598,118290.0,118280.0,0.19056064]
[1752228859859,0.8949968,118290.0,118280.0,0.19056064]
[1752228860053,0.2460368,118290.0,118280.0,0.18956064]
[1752228860250,0.8945968,118290.0,118280.0,0.18956064]
[1752228860661,0.72558,118290.0,118280.0,0.18956064]
[1752228861161,0.8945968,118290.0,118280.0,0.18956064]
[1752228861964,0.8945968,118290.0,118280.0,0.18856064]
[1752228862166,0.8955968,118290.0,118280.0,0.18856064]
[1752228871167,0.8956968,118290.0,118280.0,0.18856064]
[1752228871570,0.8956968,118290.0,118280.0,0.17072193]
[1752228876782,1.25615967,118290.0,118280.0,0.17072193]
[1752228877581,0.8956968,118290.0,118280.0,0.17072193]
[1752228877881,0.8956968,118290.0,118280.0,0.00169083]
[1752228877882,1.25615967,118290.0,118280.0,0.00169083]
[1752228879077,1.25615967,118290.0,118280.0,0.17072193]
[1752228879577,1.25615967,118290.0,118280.0,0.00169083]
[1752228879778,1.25615967,118290.0,118280.0,0.17072193]
[1752228879972,1.31667161,118290.0,118280.0,0.17072193]
[1752228880280,1.25615967,118290.0,118280.0,0.17072193]
[1752228880682,0.60759967,118290.0,118280.0,0.17072193]
[1752228880883,0.8864968,118290.0,118280.0,0.17072193]
[1752228881571,0.96211367,118290.0,118280.0,0.17072193]
[1752228882080,0.97844367,118290.0,118280.0,0.17072193]
[1752228882581,0.97844367,118290.0,118280.0,0.18680495]
[1752228882782,0.33908367,118290.0,118280.0,0.18680495]
[1752228882975,0.97732367,118290.0,118280.0,0.18680495]
[1752228884882,1.33778654,118290.0,118280.0,0.18680495]
[1752228885079,1.26216967,118290.0,118280.0,0.18680495]
[1752228885984,0.62392967,118290.0,118280.0,0.18680495]
[1752228886183,1.26044967,118290.0,118280.0,0.18680495]
[1752228886485,1.26044967,118290.0,118280.0,0.01777385]
[1752228886784,1.33606654,118290.0,118280.0,0.00169083]
[1752228887284,1.33606654,118290.0,118280.0,0.17072193]
[1752228889580,1.26044967,118290.0,118280.0,0.17072193]
[1752228892579,1.32132252,118290.0,118280.0,0.17072193]
[1752228893086,1.26044967,118290.0,118280.0,0.17072193]
[1752228893982,1.26044967,118290.0,118280.0,0.00169083]
[1752228894386,1.36677259,118290.0,118280.0,0.00169083]
[1752228895082,1.36677259,118290.0,118240.0,0.41224779]
[1752228895083,0.169074,118250.0,118240.0,0.34055227]
[1752228895287,0.802034,118250.0,118240.0,0.44081497]
[1752228896084,1.16249687,118250.0,118240.0,0.39854337]
[1752228896284,0.802034,118250.0,118240.0,0.39854337]
[1752228896480,0.802034,118250.0,118240.0,0.0377541]
[1752228896684,0.21949147,118250.0,118240.0,0.1707797]
[1752228896981,0.85169147,118250.0,118240.0,0.59444257]
[1752228897183,0.85169147,118250.0,118240.0,0.2339797]
[1752228898186,0.88359147,118250.0,118240.0,0.2339797]
[1752228898487,0.98306846,118250.0,118240.0,0.2339797]
[1752228898887,0.99504846,118250.0,118240.0,0.2339797]
[1752228899393,0.99504846,118250.0,118240.0,0.2369797]
[1752228899796,0.99504846,118250.0,118240.0,0.2409797]
[1752228900288,0.36284846,118250.0,118240.0,0.60144257]
[1752228900488,0.11145699,118250.0,118240.0,0.61744269]
[1752228900686,0.11145699,118250.0,118240.0,0.97790556]
[1752228900891,0.03539,118250.0,118240.0,0.97790556]
[1752228901134,0.03539,118250.0,118240.0,1.14704956]
[1752228901288,0.09610175,118250.0,118240.0,1.14704956]
[1752228901691,0.03539,118250.0,118240.0,1.14704956]
[1752228902484,0.22229967,118250.0,118240.0,0.36292382]
[1752228902689,0.22229967,118250.0,118240.0,0.19377982]
[1752228902690,0.85321967,118250.0,118240.0,0.19377982]
[1752228903088,0.92928666,118250.0,118240.0,0.22407982]
[1752228903294,0.92928666,118250.0,118240.0,0.25737982]
[1752228903791,0.91391487,118250.0,118240.0,0.25737982]
[1752228904197,0.91391487,118250.0,118240.0,0.25437982]
[1752228904395,0.91391487,118250.0,118240.0,0.25637982]
[1752228904596,0.85321967,118250.0,118240.0,0.25637982]
[1752228904996,1.27590614,118250.0,118240.0,0.0076914]
[1752228905192,1.41397313,118250.0,118240.0,0.0076914]
[1752228905495,0.99128666,118250.0,118240.0,0.0066914]
[1752228905699,0.45129123,118250.0,118240.0,0.1757797]
[1752228905893,1.02093767,118250.0,118240.0,0.1757797]
[1752228906093,0.91461475,118250.0,118240.0,0.2404797]
[1752228906496,0.11390075,118250.0,118240.0,0.66316617]
[1752228906800,0.06954567,118250.0,118240.0,0.66316617]
[1752228907000,0.23861967,118250.0,118240.0,0.2404797]
[1752228907200,0.06954567,118250.0,118240.0,0.2404797]
[1752228909403,0.06954567,118250.0,118240.0,0.66316617]
[1752228910204,0.23861967,118250.0,118240.0,0.2394797]
[1752228911206,0.06954567,118250.0,118240.0,0.2394797]
[1752228911405,0.06954567,118250.0,118240.0,0.67792141]
[1752228912105,0.23861967,118250.0,118240.0,0.25523494]
[1752228912298,0.05171,118250.0,118240.0,0.25523494]
[1752228912502,0.05171,118250.0,118240.0,0.25423494]
[1752228912900,0.05171,118250.0,118240.0,0.67692141]
[1752228913305,0.05171,118250.0,118240.0,1.93600141]
[1752228913604,0.05171,118250.0,118240.0,2.10514541]
[1752228913908,0.04271206,118250.0,118240.0,2.10514541]
[1752228914997,0.04271206,118250.0,118240.0,2.140694]
[1752228915199,0.04271206,118250.0,118240.0,2.14106827]
[1752228916203,0.04271206,118250.0,118240.0,2.14107082]
[1752228916603,0.04271206,118250.0,118240.0,1.54924035]
[1752228916810,0.04271206,118250.0,118240.0,2.14107082]
[1752228917005,0.04271206,118250.0,118240.0,2.10551968]
[1752228917800,0.04271206,118250.0,118240.0,1.68283321]
[1752228918005,0.04271206,118250.0,118240.0,2.10551968]
[1752228919811,0.04271206,118250.0,118240.0,1.68243523]
[1752228920009,0.04271206,118250.0,118240.0,1.97159506]
[1752228920206,0.04271206,118250.0,118240.0,1.97159945]
[1752228920710,0.04271206,118250.0,118240.0,1.9359777]
[1752228922906,0.04271206,118250.0,118240.0,1.87386688]
[1752228924910,0.04271206,118250.0,118240.0,1.90960401]
[1752228925513,0.04271206,118250.0,118240.0,1.87386688]
[1752228925719,0.04271206,118250.0,118240.0,1.89679975]
[1752228927019,0.04271206,118250.0,118240.0,1.87386688]
[1752228930729,0.2112992,118280.0,118240.0,2.08827722]
[1752228930919,0.2303454,118270.0,118260.0,0.31215288]
[1752228931111,0.0613,118270.0,118260.0,1.93116853]
[1752228931315,0.12197508,118270.0,118260.0,1.93116853]
[1752228931712,0.06067508,118270.0,118260.0,1.93116853]
[1752228931929,0.06067508,118270.0,118260.0,1.99666853]
[1752228933422,0.06276605,118280.0,118270.0,0.1690454]
[1752228933618,0.06276605,118280.0,118270.0,0.59472105]
[1752228934118,0.06276605,118280.0,118270.0,0.60323256]
[1752228934517,0.06076605,118280.0,118270.0,0.60223256]
[1752228934717,0.06076605,118280.0,118270.0,0.60023256]
[1752228934914,0.29242165,118290.0,118280.0,0.1690311]
[1752228935116,0.33467755,118290.0,118280.0,1.4273111]
[1752228935312,0.33467755,118290.0,118280.0,1.4243111]
[1752228935722,0.25016605,118290.0,118280.0,1.4243111]
[1752228936123,0.08114855,118290.0,118280.0,1.4243111]
[1752228936620,0.08114855,118290.0,118270.0,0.60322516]
[1752228936621,0.1690311,118280.0,118270.0,0.01628971]
[1752228936819,0.27155049,118260.0,118250.0,0.2113347]
[1752228937012,0.27155049,118260.0,118240.0,0.10236423]
[1752228937013,0.169074,118250.0,118240.0,0.27144163]
[1752228937214,0.202074,118250.0,118240.0,0.27144163]
[1752228937442,0.56264965,118250.0,118240.0,0.27144163]
[1752228937618,0.202074,118250.0,118240.0,0.27144163]
[1752228938023,0.56264965,118250.0,118240.0,0.27144163]
[1752228938923,0.202074,118250.0,118240.0,0.27144163]
[1752228940025,0.202074,118250.0,118240.0,0.28566262]
[1752228940026,0.65737689,118250.0,118240.0,0.28566262]
[1752228940226,0.65737689,118250.0,118240.0,0.27244163]
[1752228940426,0.234674,118250.0,118240.0,0.27244163]
[1752228940724,0.65737689,118250.0,118240.0,0.27244163]
[1752228940920,0.65747689,118250.0,118240.0,0.27244163]
[1752228941614,0.234774,118250.0,118240.0,0.27244163]
[1752228942325,0.234774,118250.0,118240.0,0.27644163]
[1752228942524,0.65747689,118250.0,118240.0,0.27644163]
[1752228943226,0.234774,118250.0,118240.0,0.27644163]
[1752228943427,0.65747689,118250.0,118240.0,0.27644163]
[1752228944422,0.12646605,118250.0,118240.0,0.27644163]
[1752228944625,0.29554005,118250.0,118240.0,0.27644163]
[1752228944923,0.234774,118250.0,118240.0,0.27644163]
[1752228946728,0.234774,118250.0,118240.0,0.69914452]
[1752228946729,0.0331,118250.0,118240.0,0.69914452]
[1752228946928,0.0331,118250.0,118240.0,0.76304452]
[1752228947329,0.0001,118250.0,118240.0,0.76304452]
[1752228947534,0.06086999,118250.0,118240.0,0.76304452]
[1752228947862,0.06086999,118250.0,118240.0,0.76290617]
[1752228949627,0.06086999,118250.0,118240.0,0.76290617]
[1752228949930,0.0001,118250.0,118240.0,0.77591295]
[1752228951332,0.0001,118250.0,118240.0,0.77588195]
[1752228953333,0.0001,118250.0,118240.0,0.7759754]
[1752228954733,0.06086999,118250.0,118240.0,0.34026573]
[1752228954927,0.06086999,118250.0,118240.0,0.76296862]
[1752228955730,0.06087457,118250.0,118240.0,0.76296862]
[1752228955935,0.00560697,118250.0,118240.0,0.76296862]
[1752228956231,0.1061358,118270.0,118240.0,0.76296862]
[1752228956232,0.0758358,118270.0,118260.0,0.1690597]
[1752228956530,0.0304,118280.0,118270.0,0.1690454]
[1752228956531,0.1071358,118280.0,118270.0,0.1690454]
[1752228956729,0.0313,118280.0,118270.0,0.2001454]
[1752228956927,0.0313,118280.0,118270.0,0.21616297]
[1752228957236,0.0313,118280.0,118270.0,0.22466317]
[1752228957429,0.0313,118280.0,118270.0,0.21616297]
[1752228958225,0.0313,118280.0,118270.0,0.21516297]
[1752228958428,0.1071358,118280.0,118270.0,0.21516297]
[1752228958937,0.1091358,118280.0,118270.0,0.21516297]
[1752228959536,0.0333,118280.0,118270.0,0.21516297]
[1752228959928,0.0333,118280.0,118270.0,0.18406297]
[1752228960136,0.0645,118280.0,118270.0,0.18406297]
[1752228961126,0.0645,118280.0,118270.0,0.21406297]
[1752228964928,0.59403563,118280.0,118270.0,0.18406297]
[1752228965141,0.2335311,118280.0,118270.0,0.18406297]
[1752228965437,0.59403563,118280.0,118270.0,0.18406297]
[1752228965929,0.59403563,118280.0,118270.0,0.21616297]
[1752228967637,0.2335311,118280.0,118270.0,0.21616297]
[1752228967838,0.59403563,118280.0,118270.0,0.21616297]
[1752228968834,0.42500453,118280.0,118270.0,0.21616297]
[1752228969137,0.59403563,118280.0,118270.0,0.21616297]
[1752228969539,0.42500453,118280.0,118270.0,0.21616297]
[1752228969940,0.59403563,118280.0,118270.0,0.18406297]
[1752228970140,0.42500453,118280.0,118270.0,0.18406297]
[1752228971739,0.42500453,118280.0,118270.0,0.21596297]
[1752228972945,0.44267202,118280.0,118270.0,0.21596297]
[1752228973146,0.61170312,118280.0,118270.0,0.21596297]
[1752228973343,0.44267202,118280.0,118270.0,0.21596297]
[1752228973939,0.61170312,118280.0,118270.0,0.21596297]
[1752228974244,0.44267202,118280.0,118270.0,0.21596297]
[1752228975144,0.08216749,118280.0,118270.0,0.21596297]
[1752228975344,0.5034196,118280.0,118270.0,0.21596297]
[1752228976146,0.002,118280.0,118270.0,0.5764675]
[1752228976343,0.06276021,118280.0,118270.0,0.6085675]
[1752228976544,0.0627609,118280.0,118270.0,0.6085675]
[1752228977546,0.002,118280.0,118270.0,0.6085675]
[1752228979140,0.002,118280.0,118270.0,0.24806297]
[1752228979336,0.002,118280.0,118270.0,0.6085675]
[1752228979938,0.002,118280.0,118270.0,0.63222127]
[1752228980852,0.002,118280.0,118270.0,0.27171674]
[1752228981055,0.002,118280.0,118270.0,0.63222127]
[1752228981546,0.0021,118280.0,118270.0,0.63222127]
[1752228982148,0.0021,118280.0,118270.0,0.24806297]
[1752228982351,0.0021,118280.0,118270.0,0.6085675]
[1752228982954,0.0021,118280.0,118270.0,0.24806297]
[1752228983150,0.0021,118280.0,118270.0,0.6085675]
[1752228984861,0.0021,118280.0,118270.0,0.63223796]
[1752228985664,0.0021,118280.0,118270.0,0.6085675]
[1752228989858,0.0021,118280.0,118270.0,0.26081529]
[1752228990067,0.0021,118280.0,118270.0,0.62131982]
[1752228990264,0.42336543,118280.0,118270.0,0.21596297]
[1752228990463,0.1286609,118280.0,118270.0,0.21596297]
[1752228991361,0.0679,118280.0,118270.0,0.21596297]